bitfinex/quotes_ETHUSD_20260108
["timestamp","ask_amount","ask_price","bid_price","bid_amount"]
[1767889145006,0.40719501,3099.8,3099.0,0.98991892]
[1767889145427,0.846,3099.9,3099.0,0.98991892]
[1767889146154,0.002,3100.1,3099.7,0.99715209]
[1767889146439,0.002,3100.4,3099.7,0.99715209]
[1767889147216,0.002,3100.4,3099.5,3.22630366]
[1767889147627,0.002,3100.4,3099.5,4.22345575]
[1767889148040,0.002,3100.4,3099.5,4.22346443]
[1767889148221,1.15035899,3100.3,3099.1,4.22388419]
[1767889148427,0.846,3100.2,3099.1,0.99715209]
[1767889148733,0.1996359,3100.1,3099.2,0.99715209]
[1767889148937,0.846,3100.2,3099.2,0.99715209]
[1767889150222,4.07163513,3100.2,3099.2,0.99715209]
[1767889150408,7.29727026,3100.2,3099.2,0.99715209]
[1767889150608,4.07163513,3100.2,3099.2,0.99715209]
[1767889150911,4.07163513,3100.2,3099.3,0.99715209]
[1767889151118,0.40716351,3100.1,3099.3,0.99715209]
[1767889153031,3.63291456,3100.1,3099.3,0.99715209]
[1767889153434,0.40716351,3100.1,3099.3,4.22368499]
[1767889153641,3.22741504,3100.4,3099.4,0.99715209]
[1767889153642,0.002,3100.4,3099.4,0.99715209]
[1767889153820,0.846,3100.3,3099.4,0.99715209]
[1767889155133,0.846,3100.3,3099.6,0.001]
[1767889155316,4.07152954,3100.3,3099.6,0.001]
[1767889155521,0.002,3100.1,3099.6,0.001]
[1767889157139,3.22770239,3100.1,3099.6,0.001]
[1767889157920,6.45340478,3100.1,3099.6,0.001]
[1767889158117,3.22770239,3100.1,3099.6,0.001]
[1767889159345,3.22770239,3100.1,3099.5,0.62455209]
[1767889159514,0.36350553,3100.0,3099.5,0.62455209]
[1767889159939,0.36350553,3100.0,3099.2,0.99715209]
[1767889160828,0.36350553,3100.0,3098.6,3.75179905]
[1767889160829,0.846,3099.9,3099.3,0.99715209]
[1767889161964,4.07194935,3099.9,3099.3,0.99715209]
[1767889162333,0.846,3099.9,3099.3,0.99715209]
[1767889162520,0.44353609,3099.8,3099.3,0.99715209]
[1767889163270,0.44353609,3099.8,3098.9,0.99715209]
[1767889163436,6.4522373,3099.7,3098.5,0.99715209]
[1767889163767,10.17845529,3099.7,3098.2,0.99715209]
[1767889163925,0.50009934,3099.6,3098.2,0.99715209]
[1767889164125,0.50009934,3099.4,3097.8,0.99715209]
[1767889164342,0.846,3099.3,3097.8,0.99715209]
[1767889164736,0.50009934,3099.2,3097.8,0.99715209]
[1767889164935,0.50009934,3099.2,3096.7,3.22916391]
[1767889164936,0.50009934,3098.9,3096.7,3.22916391]
[1767889165138,0.50009934,3098.7,3097.1,0.99715209]
[1767889165439,12.90905568,3098.6,3097.1,0.99715209]
[1767889165647,12.90905568,3098.6,3096.5,0.12897515]
[1767889165648,0.50009934,3098.4,3096.5,0.03229452]
[1767889165947,0.50009934,3098.4,3095.3,0.001]
[1767889165948,3.75179905,3097.6,3095.3,0.001]
[1767889166118,0.846,3097.5,3095.7,0.99715209]
[1767889166318,0.4253,3097.4,3095.9,0.99715209]
[1767889166552,0.846,3097.5,3095.9,0.99715209]
[1767889167340,0.846,3097.4,3096.0,0.99715209]
[1767889167544,6.45723694,3097.3,3096.1,0.99715209]
[1767889168134,6.45723694,3097.3,3096.2,0.001]
[1767889169253,0.846,3097.2,3096.2,0.99815209]
[1767889169633,6.45765392,3097.1,3096.2,0.99815209]
[1767889171528,3.22882696,3097.1,3096.2,0.99815209]
[1767889171733,6.45765392,3097.1,3096.2,0.99815209]
[1767889171934,0.846,3097.0,3096.2,0.99815209]
[1767889173641,4.07502006,3097.0,3096.2,0.99815209]
[1767889174342,0.846,3096.9,3096.2,0.99815209]
[1767889174663,0.846,3096.9,3096.3,0.92726678]
[1767889175362,3.22896405,3097.0,3096.3,0.92726678]
[1767889175559,4.07519981,3096.8,3096.3,0.92726678]
[1767889175765,4.07519981,3096.8,3096.2,0.001]
[1767889176831,7.30439962,3096.8,3096.2,0.001]
[1767889177160,4.80563977,3096.8,3096.2,0.001]
[1767889177367,4.07519981,3096.8,3096.2,0.001]
[1767889177859,6.45682,3097.5,3096.2,0.92826678]
[1767889178060,0.87829452,3097.4,3096.2,0.92826678]
[1767889178763,0.87829452,3097.4,3096.2,0.001]
[1767889179076,1.37839386,3097.4,3096.2,0.001]
[1767889179237,1.10636239,3097.3,3096.2,0.001]
[1767889179564,0.03229452,3097.2,3096.2,0.001]
[1767889179758,6.45765392,3097.1,3096.2,0.001]
[1767889179959,0.03229452,3097.0,3096.2,0.001]
[1767889180290,0.846,3096.9,3096.2,0.001]
[1767889181065,1.57959484,3096.9,3096.5,0.001]
[1767889181249,0.002,3096.5,3096.2,0.92826678]
[1767889181446,0.847,3096.4,3096.2,0.92826678]
[1767889181876,0.002,3096.8,3096.3,0.92726678]
[1767889182185,0.847,3096.7,3096.3,0.92726678]
[1767889182483,1.57773042,3096.7,3096.2,0.001]
[1767889182782,0.847,3096.7,3096.2,0.001]
[1767889183287,0.03229452,3096.6,3096.2,0.001]
[1767889183649,0.03229452,3096.6,3095.7,0.92726678]
[1767889184183,0.847,3096.7,3095.7,0.92726678]
[1767889184184,3.2294526,3096.5,3095.7,0.92726678]
[1767889184554,3.22938836,3096.6,3095.8,0.92726678]
[1767889184760,3.23117647,3096.8,3095.9,0.92726678]
[1767889184995,0.847,3096.5,3095.9,0.92726678]
[1767889186164,4.07646273,3096.5,3095.9,0.92726678]
[1767889186367,7.30592546,3096.5,3095.9,0.92726678]
[1767889186848,4.07646273,3096.5,3095.9,0.92726678]
[1767889187249,0.03229452,3096.4,3095.6,0.92726678]
[1767889187554,4.07646273,3096.5,3095.7,1.3430407]
[1767889187760,4.07646273,3096.5,3095.7,0.95956964]
[1767889187761,3.22946273,3096.5,3095.7,0.95956964]
[1767889187957,0.847,3096.4,3095.8,0.92726678]
[1767889188265,3.23117356,3096.8,3095.9,0.95956756]
[1767889188467,0.847,3096.7,3095.9,0.92726678]
[1767889190308,3.23116906,3096.8,3096.0,0.92726678]
[1767889190595,0.50009934,3097.7,3096.5,0.92726678]
[1767889190794,0.87929452,3097.6,3096.5,0.92726678]
[1767889191708,0.50009934,3097.5,3096.1,0.41573063]
[1767889192000,0.03229452,3097.4,3095.9,0.92726678]
[1767889192366,9.68585541,3097.3,3096.0,0.92726678]
[1767889192567,0.03229452,3097.2,3096.0,0.92726678]
[1767889192826,0.847,3097.1,3096.0,0.92726678]
[1767889192996,0.847,3097.1,3096.1,0.92726678]
[1767889193192,0.847,3097.1,3096.3,0.92726678]
[1767889193565,0.03229452,3097.0,3096.3,0.92726678]
[1767889193772,0.96959824,3097.0,3095.3,0.001]
[1767889193967,0.96959824,3097.0,3095.3,0.92826678]
[1767889194298,0.93730372,3096.8,3095.3,0.92826678]
[1767889194469,9.68804493,3096.6,3095.3,0.92826678]
[1767889194668,0.87929452,3096.5,3095.3,0.92826678]
[1767889195080,0.87929452,3096.5,3092.9,0.002]
[1767889195081,0.09668063,3095.9,3092.9,0.002]
[1767889195281,0.93730372,3095.5,3093.6,3.23242582]
[1767889195602,0.847,3095.4,3094.6,3.23140077]
[1767889195901,0.847,3095.4,3094.7,0.92726678]
[1767889196305,0.847,3095.3,3094.7,0.92726678]
[1767889196473,0.847,3095.3,3094.4,3.23164049]
[1767889196816,0.847,3095.3,3094.3,0.95958426]
[1767889196817,0.847,3095.2,3094.5,0.41912248]
[1767889197016,0.93730372,3095.5,3094.5,0.41912248]
[1767889197017,0.847,3095.1,3094.5,0.41912248]
[1767889197312,4.16783641,3095.5,3094.5,0.41912248]
[1767889197623,0.847,3095.4,3094.6,3.23137787]
[1767889197905,3.23018282,3095.8,3094.7,3.23132836]
[1767889198119,3.23018282,3095.8,3093.7,3.6483014]
[1767889198120,0.847,3095.7,3094.3,0.92726678]
[1767889198402,0.847,3095.6,3094.5,0.92726678]
[1767889198825,1.03398435,3096.3,3094.4,0.03231226]
[1767889198826,6.45973966,3096.1,3094.7,0.92726678]
[1767889198991,0.847,3096.0,3094.9,0.92726678]
[1767889199173,3.22986983,3096.1,3094.9,0.92726678]
[1767889199517,0.847,3096.0,3094.9,0.92726678]
[1767889199812,3.22986983,3096.1,3094.9,0.92726678]
[1767889199988,0.847,3096.0,3094.9,0.92726678]
[1767889200184,0.847,3096.0,3095.0,0.17018238]
[1767889200415,0.847,3095.9,3095.1,0.03230913]
[1767889200586,0.002,3097.1,3095.7,0.92726678]
[1767889200778,0.847,3096.7,3095.8,4.1574496]
[1767889201676,0.03429452,3097.1,3095.8,4.1574496]
[1767889201874,0.002,3097.1,3096.4,4.51082806]
[1767889202085,0.847,3097.0,3096.0,4.51082806]
[1767889202306,0.847,3096.9,3096.0,4.51082806]
[1767889202688,0.847,3096.9,3096.1,6.45973966]
[1767889203178,0.847,3096.9,3096.1,3.22986983]
[1767889203377,0.847,3096.9,3096.2,0.41571366]
[1767889204785,0.847,3096.9,3096.2,3.64546752]
[1767889205189,0.847,3096.9,3096.2,0.41571366]
[1767889205415,0.847,3096.9,3096.2,3.64547547]
[1767889206117,0.847,3096.9,3095.9,0.041786]
[1767889206118,0.981966,3096.8,3095.9,0.041786]
[1767889206502,1.01426052,3096.8,3095.9,0.041786]
[1767889206685,6.45848806,3096.7,3095.9,0.041786]
[1767889206881,0.981966,3096.6,3095.4,3.23058638]
[1767889207090,0.981966,3096.6,3095.5,3.23049157]
[1767889207289,0.981966,3096.5,3095.6,0.32304916]
[1767889207620,1.828966,3096.4,3095.6,0.32304916]
[1767889207843,1.828966,3096.4,3096.3,0.001]
[1767889208019,1.828966,3096.4,3095.4,3.23057788]
[1767889208020,0.847,3096.4,3095.5,3.2304542]
[1767889208188,0.847,3096.4,3095.6,3.2303296]
[1767889208493,0.74404541,3096.6,3095.6,0.6460877]
[1767889208698,0.74404541,3096.6,3095.1,6.4617975]
[1767889208699,0.847,3096.3,3095.1,6.4617975]
[1767889209222,0.847,3096.3,3095.1,9.69271087]
[1767889209521,1.828966,3096.3,3095.1,9.69271087]
[1767889209817,0.981966,3096.7,3095.4,3.58356128]
[1767889210019,0.847,3096.6,3095.5,0.03230494]
[1767889210192,0.847,3096.6,3095.6,0.36158662]
[1767889210387,0.847,3096.6,3095.6,1.26413737]
[1767889210615,0.847,3096.6,3095.7,0.90255075]
[1767889210924,0.847,3096.6,3095.8,3.23018282]
[1767889211096,0.847,3096.6,3095.8,4.00264829]
[1767889211303,1.828966,3096.6,3095.8,4.00264829]
[1767889211492,0.847,3096.6,3095.8,4.00264829]
[1767889211910,0.981966,3096.5,3095.8,0.77246547]
[1767889212226,0.981966,3096.5,3095.0,0.17018238]
[1767889212737,0.981966,3096.5,3095.3,3.23063905]
[1767889213143,6.4591138,3096.4,3095.2,3.23078229]
[1767889213314,7.4410798,3096.4,3095.2,3.23078229]
[1767889213921,0.03229452,3096.3,3095.2,3.23078229]
[1767889214134,0.03229452,3096.3,3095.2,3.57087876]
[1767889214135,0.74733743,3096.2,3095.2,3.57087876]
[1767889214441,0.74733743,3096.2,3095.0,0.17018238]
[1767889214442,0.847,3096.1,3095.0,0.17018238]
[1767889214747,0.847,3096.1,3094.8,4.13373988]
[1767889214906,0.847,3096.1,3094.6,3.58356128]
[1767889215371,6.45994832,3096.0,3094.7,3.23125005]
[1767889215908,6.45994832,3096.0,3094.7,6.46258103]
[1767889216643,3.22990481,3096.1,3094.8,0.93486301]
[1767889216843,0.847,3095.9,3094.9,1.64229515]
[1767889217261,0.39772422,3096.1,3095.1,3.23091337]
[1767889217413,0.847,3095.8,3094.9,0.7397444]
[1767889217748,0.39772422,3096.1,3095.0,4.13355126]
[1767889218046,3.32514508,3097.5,3095.2,0.90255075]
[1767889218047,0.847,3096.0,3095.2,0.90255075]
[1767889218341,3.22937827,3096.6,3095.2,0.93485883]
[1767889218342,0.847,3095.9,3095.2,0.93485883]
[1767889218549,0.847,3095.8,3095.2,0.93485883]
[1767889218732,4.21125678,3096.7,3095.2,0.93485883]
[1767889218917,0.847,3096.6,3095.2,0.93485883]
[1767889219111,0.847,3096.6,3095.3,1.35439276]
[1767889219313,3.23118385,3096.8,3095.4,7.39605722]
[1767889219314,6.46039587,3096.8,3095.4,7.39605722]
[1767889219646,0.847,3096.7,3095.4,7.36375123]
[1767889220031,0.002,3096.8,3095.6,0.90255075]
[1767889220275,0.849,3096.8,3095.6,0.90255075]
[1767889220546,0.849,3096.8,3095.7,1.39404703]
[1767889220852,0.002,3096.8,3095.9,4.52899711]
[1767889221017,0.002,3097.1,3096.0,0.94543583]
[1767889221354,0.002,3097.1,3096.1,6.45973966]
[1767889221565,0.002,3096.3,3096.1,6.45973966]
[1767889221726,0.002,3097.1,3096.2,0.74051755]
[1767889221925,0.002,3096.6,3096.2,0.74051755]
[1767889223113,0.90626482,3097.0,3096.2,4.32407883]
[1767889223316,0.90626482,3097.0,3096.3,6.4593224]
[1767889224324,0.002,3097.1,3096.3,6.4593224]
[1767889224528,0.002,3097.1,3096.4,1.07834012]
[1767889224725,0.90626482,3097.8,3096.6,3.58356128]
[1767889224918,0.849,3097.9,3096.7,0.94543583]
[1767889225119,0.002,3097.9,3096.7,0.94543583]
[1767889225319,0.002,3097.9,3096.6,3.58356128]
[1767889225320,0.002,3097.9,3097.1,0.94543583]
[1767889225521,0.002,3098.4,3097.3,0.94543583]
[1767889226515,0.002,3098.4,3097.5,0.94543583]
[1767889227063,0.03429452,3099.5,3097.5,0.94543583]
[1767889227220,0.847,3099.0,3097.6,7.40204739]
[1767889227421,0.90626482,3098.7,3097.3,3.22856239]
[1767889227615,0.03229452,3098.6,3097.4,3.22850338]
[1767889227879,0.03229452,3098.6,3097.3,3.22858336]
[1767889228033,0.90626482,3098.7,3097.3,0.94543583]
[1767889228034,0.847,3098.7,3097.3,0.94543583]
[1767889228353,0.87929452,3098.8,3097.6,0.94543583]
[1767889228554,0.77438013,3098.7,3097.6,0.94543583]
[1767889228932,0.77438013,3098.7,3097.5,7.40223552]
[1767889229130,3.63755527,3098.9,3097.2,1.79143583]
[1767889229131,0.03229452,3098.6,3097.2,1.79143583]
[1767889229347,6.45473616,3098.5,3097.2,5.02012072]
[1767889229552,0.03229452,3098.4,3097.2,4.07468489]
[1767889229752,0.03229452,3098.4,3097.0,3.22892874]
[1767889229753,0.87929452,3098.4,3097.0,3.22892874]
[1767889230048,0.87929452,3098.4,3096.8,0.94543583]
[1767889230216,0.87929452,3098.4,3097.2,3.22872224]
[1767889230217,1.05613988,3098.3,3097.2,3.22872224]
[1767889230433,1.05613988,3098.3,3097.3,0.94543583]
[1767889230769,6.45458471,3098.6,3097.3,0.94543583]
[1767889230942,3.22726392,3098.6,3097.3,0.94543583]
[1767889231572,3.63760465,3098.9,3097.6,0.94543583]
[1767889232169,0.41060378,3098.9,3097.6,0.94543583]
[1767889232369,3.22688357,3099.0,3097.6,0.94543583]
[1767889232579,3.22688357,3099.0,3097.7,0.846]
[1767889232763,3.22688357,3099.0,3097.8,0.91824953]
[1767889233066,6.45376714,3099.0,3097.8,0.91824953]
[1767889233277,3.22688357,3099.0,3097.8,0.91824953]
[1767889233445,3.54971605,3098.9,3097.9,4.14624268]
[1767889233642,3.54972516,3098.9,3097.9,4.14624268]
[1767889233843,3.5497026,3098.9,3097.9,4.14624268]
[1767889234668,0.32268836,3098.9,3097.9,7.37423583]
[1767889234875,0.32268836,3098.9,3098.1,0.91824953]
[1767889235182,3.22667645,3099.2,3098.1,0.91824953]
[1767889235371,6.29251363,3099.2,3098.0,0.75506608]
[1767889235557,6.45286184,3099.4,3098.1,3.22778477]
[1767889235759,6.45286184,3099.4,3098.2,0.91824953]
[1767889237769,0.002,3099.5,3097.9,0.09668063]
[1767889237959,0.09668063,3098.6,3096.9,4.14726196]
[1767889238172,0.09668063,3098.4,3097.2,3.22866635]
[1767889238369,0.09668063,3098.4,3097.3,0.03228618]
[1767889238593,0.09668063,3098.4,3097.2,3.22866791]
[1767889239092,0.03229452,3098.3,3097.2,3.22866791]
[1767889239272,0.09668063,3098.4,3097.0,0.91824953]
[1767889239467,0.09668063,3098.4,3097.4,3.22845437]
[1767889239890,7.30073616,3098.5,3097.2,4.14697006]
[1767889240291,0.12897515,3098.4,3097.1,3.40523164]
[1767889241703,0.12897515,3098.4,3097.2,0.91824953]
[1767889242072,6.45515282,3098.3,3097.2,4.1469413]
[1767889242376,0.6584128,3098.2,3097.2,4.1469413]
[1767889242563,0.69070732,3098.2,3097.2,4.1469413]
[1767889243411,0.69070732,3098.2,3097.2,0.91824953]
[1767889243894,0.69070732,3098.2,3097.2,4.14692789]
[1767889244714,3.22778477,3098.1,3097.2,4.14692789]
[1767889244880,3.22778477,3098.1,3097.2,4.90215612]
[1767889245086,0.6584128,3098.2,3097.2,8.13087883]
[1767889245268,0.97193997,3098.7,3097.2,8.13087883]
[1767889245269,0.97193997,3099.0,3097.6,0.91824953]
[1767889245464,0.09668063,3099.3,3097.5,3.58356128]
[1767889245465,3.22702524,3098.9,3097.8,0.91824953]
[1767889245692,3.54972776,3098.9,3097.9,0.20870488]
[1767889246203,3.54972776,3098.9,3097.9,0.17642495]
[1767889246702,0.32270252,3098.9,3097.9,1.09467448]
[1767889246900,3.22704922,3098.9,3098.0,3.22788896]
[1767889247198,3.22685359,3099.0,3098.0,4.14613849]
[1767889247370,6.45370718,3099.0,3098.0,4.14613849]
[1767889248197,6.45370718,3099.0,3098.0,0.91824953]
[1767889248499,6.45370718,3099.0,3097.4,3.22848061]
[1767889248500,0.09668063,3097.6,3096.3,3.22961744]
[1767889248670,0.09668063,3097.6,3096.8,0.91824953]
[1767889248671,0.94268063,3097.6,3096.8,0.91824953]
[1767889248871,4.17099636,3097.6,3096.8,0.91824953]
[1767889249182,3.32486457,3097.8,3096.8,4.14735478]
[1767889249387,0.09668063,3097.6,3096.8,0.91824953]
[1767889249822,0.09668063,3097.2,3096.0,0.91824953]
[1767889250005,0.09668063,3097.2,3096.1,3.22982007]
[1767889250208,0.09668063,3097.2,3096.1,0.91824953]
[1767889251018,6.45765392,3097.1,3096.1,4.14811921]
[1767889251215,0.09668063,3097.2,3096.1,7.37798904]
[1767889251418,3.22882696,3097.1,3096.2,0.8223989]
[1767889252590,3.22874765,3097.2,3096.2,0.8223989]
[1767889252810,3.22841,3097.5,3096.3,0.91824953]
[1767889253013,0.09668063,3097.4,3096.4,0.91824953]
[1767889253322,0.09668063,3097.2,3096.2,0.8223989]
[1767889253503,0.09668063,3097.2,3096.2,3.22969528]
[1767889253692,0.09668063,3097.4,3096.1,3.22981994]
[1767889254021,0.09668063,3097.2,3096.1,3.2298559]
[1767889254992,3.22882696,3097.1,3096.1,3.2298559]
[1767889255192,4.20076693,3097.1,3096.1,3.2298559]
[1767889255519,0.09668063,3097.0,3096.2,0.40758559]
[1767889255707,1.0686206,3097.0,3096.0,0.846]
[1767889256616,1.0686206,3097.0,3096.0,4.07597124]
[1767889257001,1.0686206,3097.0,3096.0,0.846]
[1767889257194,6.45807096,3096.9,3096.0,0.846]
[1767889257587,3.22903548,3096.9,3095.9,3.23006453]
[1767889257895,3.22903548,3096.9,3096.0,0.41483141]
[1767889258294,3.22903548,3096.9,3096.0,3.64477467]
[1767889258924,3.32566471,3097.0,3096.0,4.5630242]
[1767889259420,3.32566471,3097.0,3096.0,7.79299836]
[1767889259615,3.32566471,3097.0,3096.1,0.91824953]
[1767889259926,3.32566471,3097.0,3096.1,1.69755266]
[1767889260497,3.32566471,3097.0,3096.3,0.001]
[1767889261224,4.07787072,3097.1,3096.3,0.001]
[1767889261601,0.002,3097.1,3096.3,0.91924953]
[1767889261902,6.45966608,3097.1,3096.3,0.001]
[1767889262102,0.7523153,3097.0,3096.3,0.001]
[1767889262733,0.78460982,3097.0,3096.3,0.001]
[1767889262897,0.09668063,3096.8,3096.3,0.001]
[1767889263533,3.22924403,3096.7,3096.3,0.001]
[1767889264033,6.45848806,3096.7,3096.3,0.001]
[1767889264327,0.65551687,3096.6,3096.3,0.001]
[1767889264498,3.8845862,3097.0,3096.3,0.001]
[1767889264694,7.11353773,3097.0,3096.3,0.001]
[1767889265296,0.65563467,3097.0,3096.3,0.001]
[1767889265502,3.23085373,3097.1,3096.3,0.94398312]
[1767889265917,0.002,3097.1,3096.4,0.97527868]
[1767889266130,0.002,3097.4,3096.4,0.97527868]
[1767889266301,0.002,3097.4,3096.5,0.94298312]
[1767889266501,0.002,3097.4,3096.7,0.94298312]
[1767889266702,5.75806659,3098.0,3096.7,0.94298312]
[1767889266703,0.98013661,3098.6,3096.7,0.94298312]
[1767889267010,0.09668063,3098.2,3096.7,0.94298312]
[1767889267726,3.22788896,3098.0,3096.9,0.94298312]
[1767889267919,6.58475307,3098.0,3096.9,0.94298312]
[1767889268125,0.09668063,3097.8,3096.9,0.94298312]
[1767889268432,6.55245855,3098.0,3096.9,0.94298312]
[1767889268627,0.09668063,3097.8,3096.9,0.94298312]
[1767889268941,3.96770232,3098.1,3097.0,0.94298312]
[1767889269102,0.09668063,3098.0,3097.0,0.94298312]
[1767889269303,0.03229452,3097.9,3096.8,0.94298312]
[1767889269516,6.55231857,3098.1,3096.8,0.97527451]
[1767889269725,0.09668063,3097.9,3096.8,0.97527451]
[1767889269922,3.22809735,3097.8,3096.9,0.74337125]
[1767889270512,6.4561947,3097.8,3096.9,0.74337125]
[1767889270834,0.09668063,3097.3,3096.2,0.94298312]
[1767889271035,0.12897515,3097.2,3096.2,0.94298312]
[1767889271202,0.09668063,3097.2,3096.2,4.17273445]
[1767889271408,0.09668063,3097.2,3096.2,0.94298312]
[1767889271634,0.09668063,3097.2,3096.0,0.87829974]
[1767889271838,0.09668063,3097.2,3096.1,0.94298312]
[1767889271839,3.22882696,3097.1,3096.1,0.94298312]
[1767889272239,3.22882696,3097.1,3096.1,4.17279791]
[1767889272614,3.22882696,3097.1,3096.1,4.17282562]
[1767889273014,3.22882696,3097.1,3096.2,3.22972983]
[1767889273650,3.22882696,3097.1,3096.1,4.17281898]
[1767889274247,6.45753185,3097.2,3096.6,0.001]
[1767889274444,0.65542125,3097.1,3096.6,0.001]
[1767889276151,3.22893122,3097.0,3096.6,0.001]
[1767889276535,0.09668063,3096.9,3096.6,0.001]
[1767889277123,0.09668063,3097.0,3096.6,0.001]
[1767889277621,0.65542125,3097.1,3096.6,0.001]
[1767889277929,0.09668063,3097.5,3096.6,0.001]
[1767889278113,3.32500522,3097.6,3096.7,4.17222715]
[1767889278415,3.22832459,3097.6,3096.8,0.03229139]
[1767889279212,6.45843626,3097.7,3096.8,0.03229139]
[1767889279851,3.23021813,3097.7,3096.8,0.03229139]
[1767889280026,0.002,3097.7,3097.0,0.94298312]
[1767889281331,0.847,3098.4,3096.9,0.4527422]
[1767889281332,3.22726392,3098.6,3097.5,0.94298312]
[1767889281748,3.22917522,3098.7,3097.5,0.94298312]
[1767889281923,3.2292026,3098.7,3097.5,0.94298312]
[1767889282126,3.2292026,3098.7,3097.6,1.68298428]
[1767889282560,3.2292026,3098.7,3097.7,0.94298312]
[1767889282561,0.002,3098.7,3097.7,0.94298312]
[1767889282870,3.22916316,3098.7,3097.7,0.94298312]
[1767889283158,3.32584379,3098.7,3097.7,0.94298312]
[1767889283318,3.32584379,3098.7,3097.7,4.17117241]
[1767889283519,3.32584379,3098.7,3097.8,0.57571736]
[1767889285060,3.32584379,3098.7,3097.7,4.17115669]
[1767889285352,6.55300695,3098.7,3097.7,0.94298312]
[1767889286123,6.55300695,3098.7,3097.7,4.17117077]
[1767889286751,0.03229452,3098.6,3097.7,0.94298312]
[1767889286952,7.53314356,3098.7,3097.6,0.846]
[1767889287164,0.75331436,3098.6,3097.6,4.07427166]
[1767889288659,3.22736808,3098.5,3097.6,0.846]
[1767889288864,3.17736808,3098.5,3098.0,0.001]
[1767889289378,0.002,3098.4,3098.0,0.001]
[1767889290052,0.002,3098.4,3098.0,0.94398312]
[1767889290557,0.002,3098.4,3098.1,3.22778477]
[1767889290759,0.002,3098.4,3098.2,0.41717679]
[1767889291261,0.002,3098.7,3098.2,1.36015991]
[1767889291449,0.002,3099.3,3098.4,0.94298312]
[1767889291649,0.002,3099.5,3098.8,0.94298312]
[1767889292052,0.09668063,3099.0,3098.1,3.22778477]
[1767889292249,3.55122648,3099.5,3098.2,0.96277739]
[1767889292440,6.77763389,3099.5,3098.2,0.96277739]
[1767889292862,6.77763389,3099.5,3098.4,0.96277739]
[1767889293633,3.55122648,3099.5,3098.4,0.96277739]
[1767889293836,0.32481907,3099.5,3098.5,0.96277739]
[1767889294033,0.002,3099.5,3098.5,0.96277739]
[1767889294239,3.22834589,3099.5,3098.5,0.96277739]
[1767889294464,3.22834589,3099.5,3098.4,0.50363538]
[1767889294465,6.45469178,3099.5,3098.4,0.50363538]
[1767889294646,0.03229452,3099.4,3098.2,4.07363201]
[1767889294960,0.03229452,3099.4,3098.2,0.846]
[1767889294961,6.45307004,3099.3,3098.2,0.846]
[1767889295269,0.69049904,3099.2,3098.2,0.846]
[1767889296168,0.78717967,3099.2,3098.0,0.001]
[1767889296473,0.78717967,3099.2,3098.0,4.19159011]
[1767889296474,1.60088515,3099.2,3098.0,4.19159011]
[1767889296763,1.63317967,3099.2,3098.0,4.19159011]
[1767889296964,0.80862497,3099.1,3098.0,4.19159011]
[1767889297165,3.22684737,3099.0,3098.1,3.22778292]
[1767889297331,6.45369474,3099.0,3098.0,0.96377739]
[1767889297535,0.03229452,3098.9,3098.0,0.001]
[1767889297937,6.55037537,3099.0,3098.0,0.001]
[1767889298137,0.76819455,3098.9,3098.0,0.001]
[1767889298952,1.61419455,3098.9,3098.0,0.001]
[1767889299470,6.45411126,3098.8,3098.0,0.001]
[1767889300274,6.55079189,3098.8,3098.0,0.001]
[1767889300477,0.09668063,3098.6,3097.4,3.22843049]
[1767889300646,0.86216455,3098.6,3097.4,3.97042269]
[1767889300972,0.09668063,3098.4,3097.4,0.7419922]
[1767889301268,0.09668063,3098.4,3097.3,3.22855855]
[1767889301788,3.22757641,3098.3,3097.2,3.2287109]
[1767889302246,1.83723674,3098.6,3097.3,0.99506356]
[1767889302247,1.70816455,3098.6,3097.3,0.99506356]
[1767889302447,3.22736808,3098.5,3097.3,0.99506356]
[1767889302671,3.22736808,3098.5,3097.3,0.96277739]
[1767889302859,6.45473616,3098.5,3097.3,0.96277739]
[1767889303263,0.97507219,3098.5,3097.2,9.71844354]
[1767889303572,3.22695149,3098.9,3097.4,0.99506253]
[1767889303744,0.44925773,3098.8,3097.6,0.96277739]
[1767889304175,1.07175282,3098.6,3097.2,4.19145277]
[1767889304383,0.09668063,3098.4,3097.3,3.2285225]
[1767889304674,0.09668063,3098.4,3097.2,4.1914542]
[1767889304877,0.09668063,3098.4,3097.2,0.96277739]
[1767889305087,1.07175282,3098.4,3097.2,0.18087774]
[1767889305684,6.45515282,3098.3,3097.2,3.40958019]
[1767889305878,6.45515282,3098.3,3097.2,0.18087774]
[1767889306077,0.09668063,3097.8,3096.6,0.001]
[1767889306256,0.846,3098.1,3097.1,0.96277739]
[1767889306651,0.09668063,3098.2,3097.1,0.96277739]
[1767889306962,0.73978335,3098.1,3097.1,4.19159573]
[1767889307161,0.73978335,3098.1,3097.1,0.96277739]
[1767889307368,0.73978335,3098.1,3097.2,4.22371081]
[1767889307696,0.846,3098.6,3097.3,0.96277739]
[1767889307852,3.22736808,3098.5,3097.6,0.96277739]
[1767889308053,3.22718162,3098.7,3097.6,0.96277739]
[1767889309395,3.22718162,3098.7,3097.6,0.99506044]
[1767889309596,3.22718162,3098.7,3097.7,0.82978804]
[1767889309995,3.22718162,3098.7,3097.7,1.79256543]
[1767889310297,3.22718162,3098.7,3097.7,5.02076446]
[1767889310973,6.45443639,3098.7,3097.7,1.79256543]
[1767889311178,6.45443639,3098.7,3097.7,0.96277739]
[1767889311376,1.85336671,3098.6,3097.0,0.96277739]
[1767889311581,0.09668063,3098.4,3097.1,3.22877037]
[1767889311895,0.03229452,3098.3,3097.0,5.03767087]
[1767889312075,6.45536116,3098.2,3097.1,3.73258964]
[1767889312264,0.03229452,3098.1,3097.1,3.73258964]
[1767889312969,3.22768058,3098.2,3097.1,6.9614166]
[1767889313300,6.45481808,3098.5,3097.2,0.96277739]
[1767889313466,7.30081808,3098.5,3097.2,0.96277739]
[1767889313791,1.07175282,3097.8,3096.4,3.22955125]
[1767889313998,0.09668063,3097.6,3096.3,3.23064511]
[1767889314170,6.45682,3097.5,3096.3,3.23064511]
[1767889314495,0.846,3097.4,3096.3,0.03329661]
[1767889316198,3.22820156,3097.7,3096.5,0.96277739]
[1767889316365,3.22814668,3097.8,3096.6,0.99607087]
[1767889316570,6.45629336,3097.8,3096.6,0.99607087]
[1767889316762,3.95837602,3097.8,3096.6,0.99607087]
[1767889316962,3.22788896,3098.0,3096.6,0.99607087]
[1767889317398,3.32456959,3098.0,3096.6,0.99607087]
[1767889318073,6.55245855,3098.0,3096.6,0.99607087]
[1767889318273,6.55245855,3098.0,3096.7,7.42126545]
[1767889318672,6.55245855,3098.0,3096.7,4.19202142]